Cogmind - Beta 14 @@@ ROGUE MODE // 2024.08.24 @ 23:47:21 Player: Olafz Result: Self-destructed Performance ------------- Evolutions (5) 2500 Regions Visited (6) 1200 Robots Destroyed (0) 0 Value Destroyed (0) 0 Prototype IDs (2) 40 Alien Tech Used (0) 0 Bonus (1987) 1987 TOTAL SCORE: 5727 Bonus ------- Pacifist 1987 Cogmind --------- Core Integrity 1000/1000 Matter 41/300 Energy 100/100 System Corruption 0% Temperature Cool (0) Movement Flying (35) Location -5/Factory Parts ------- > --- POWER (1) -------- (None) > --- PROPULSION (4) --- Cesium-ion Thruster > --- UTILITY (10) ----- Signal Interpreter Improved Signal Interpreter Hacking Suite > --- WEAPON (2) ------- Power Sword > --- INVENTORY (5) ---- Nuclear Pulse Thruster Nuclear Pulse Thruster Cooled Cesium-ion Thruster Cooled Cesium-ion Thruster Heavy Flail Peak State ------------ > --- POWER ------------ Micro Nuclear Core > --- PROPULSION ------- Cesium-ion Thruster Xenon Bombardment Thruster Cooled Cesium-ion Thruster > --- UTILITY ---------- Signal Interpreter Improved Signal Interpreter Stasis Canceller Hacking Suite > --- WEAPON ----------- Katana Power Sword > --- INVENTORY -------- Nuclear Pulse Thruster Cooled Cesium-ion Thruster Cooled Cesium-ion Thruster Heavy Flail [Rating: 39] Favorites ----------- Power Micro Nuclear Core Power Core Micro Nuclear Core Propulsion Cesium-ion Thruster Flight Unit Cesium-ion Thruster Utility Signal Interpreter Device Stasis Canceller Processor Signal Interpreter Hackware Hacking Suite Weapon Heavy Flail Impact Weapon Heavy Flail Slashing Weapon Power Sword Build | -11 -10 -9 -8 -7 -6 -5 ------- Run | Yrd Mat Mat Mat Fac Fac Fac Slots Evolved 10 | . . 2 2 2 2 2 Power . | . . . . . . . Propulsion 2 | . . . . 2 . . Utility 8 | . . 2 2 . 2 2 Weapon . | . . . . . . . Parts Attached 22 | . 4 3 1 6 8 . Power 1 | . . . . 1 . . Engine . | . . . . . . . Core 1 | . . . . 1 . . Reactor . | . . . . . . . Propulsion 11 | . 3 1 . 4 3 . Treads . | . . . . . . . Leg . | . . . . . . . Wheel . | . . . . . . . Hover . | . . . . . . . Flight 11 | . 3 1 . 4 3 . Utility 6 | . 1 . 1 1 3 . Device 3 | . . . 1 . 2 . Storage . | . . . . . . . Processor 2 | . 1 . . . 1 . Hackware 1 | . . . . 1 . . Protection . | . . . . . . . Artifact . | . . . . . . . Weapon 4 | . . 2 . . 2 . Energy Gun . | . . . . . . . Energy Cannon . | . . . . . . . Ballistic Gun . | . . . . . . . Ballistic Cannon . | . . . . . . . Launcher . | . . . . . . . Special Weapon . | . . . . . . . Impact Weapon 2 | . . 2 . . . . Slashing Weapon 2 | . . . . . 2 . Piercing Weapon . | . . . . . . . Special Melee Weapon . | . . . . . . . Unidentified Prototypes 2 | . . . . . 2 . Parts Lost 15 | . 1 . . 4 10 . Power 1 | . . . . . 1 . Propulsion 9 | . 1 . . 3 5 . Utility 4 | . . . . 1 3 . Weapon 1 | . . . . . 1 . Highest Loss Streak 5 | . 1 . . 2 5 . To Critical Strikes . | . . . . . . . Average Slot Usage (%) 46 | . 14 41 47 42 61 . Core 2 | . . . . . 6 . Flight 16 | . 3 16 18 15 19 . Device 1 | . . . 2 1 3 . Processor 9 | . 10 11 9 7 11 . Hackware 2 | . . . . . 6 . Impact Weapon 11 | . . 14 18 15 5 . Slashing Weapon 2 | . . . . . 7 . Peak Build Rating 39 | . 3 12 15 21 39 . Average Rating 17 | . 1 7 13 13 31 . On Entrance 9 | . . 3 12 15 21 17 Naked Turns 13 | . 13 . . . . . Heaviest Build 16 | . . 6 7 12 16 . Greatest Support 20 | 3 8 9 9 14 20 . Greatest Overweight (x) 1 | . . . . . 1 . Average Overweight (x) . | . . . . . . . Largest Inventory Capacity 5 | 5 5 5 5 5 5 . Average Capacity 5 | 5 5 5 5 5 5 . Most Carried 5 | . 3 5 5 5 5 . Average Carried 3 | . . 3 5 4 3 . Final Capacity 5 | 5 5 5 5 5 5 5 Final Carried 5 | . 1 5 5 2 5 5 Class Distribution -------------------- 63% | Mutant 36% | Sprinter Dominant Class ---------------- Mutant | -10/Materials Mutant | -9/Materials Mutant | -8/Materials Mutant | -7/Factory Sprinter | -6/Factory Sprinter | -5/Factory Resources | -11 -10 -9 -8 -7 -6 -5 ----------- Run | Yrd Mat Mat Mat Fac Fac Fac Matter Collected 101 | 101 . . . . . . Remotely . | . . . . . . . Salvage Created . | . . . . . . . Parts . | . . . . . . . Haulers Intercepted . | . . . . . . . Recyclers Shooed . | . . . . . . . Parts Field Recycled . | . . . . . . . Retrieved Matter . | . . . . . . . Parts Self-Destructed . | . . . . . . . Prevented . | . . . . . . . Kills | -11 -10 -9 -8 -7 -6 -5 ------- Run | Yrd Mat Mat Mat Fac Fac Fac Combat Hostiles Destroyed . | . . . . . . . Classes Destroyed . | . . . . . . . Best Kill Streak . | . . . . . . . Combat Bots Only . | . . . . . . . Max Kills in Single Turn . | . . . . . . . Gunslinging . | . . . . . . . Exploded . | . . . . . . . Melee . | . . . . . . . Uniques/NPCs Destroyed . | . . . . . . . Combat | -11 -10 -9 -8 -7 -6 -5 -------- Run | Yrd Mat Mat Mat Fac Fac Fac Hostile Shots Fired 219 | . 22 19 9 87 82 . Missed 126 | . 11 8 3 59 45 . Damage Taken 1316 | . 147 153 95 282 639 . Core 676 | . 123 99 29 142 283 . Absorbed by Shields . | . . . . . . . Core Remaining (%) 77 | 100 50 75 94 79 66 . Volleys Fired . | . . . . . . . Largest . | . . . . . . . Hottest . | . . . . . . . Shots Fired . | . . . . . . . Gun . | . . . . . . . Cannon . | . . . . . . . Launcher . | . . . . . . . Special . | . . . . . . . Kinetic . | . . . . . . . Thermal . | . . . . . . . Explosive . | . . . . . . . Electromagnetic . | . . . . . . . Robot Hit Streak . | . . . . . . . Robot Miss Streak . | . . . . . . . Penetration Max . | . . . . . . . Secondary Targets . | . . . . . . . Shots Hit Robots . | . . . . . . . Core Hits . | . . . . . . . Critical Kills . | . . . . . . . Critical Parts Destroyed . | . . . . . . . Critical Strikes . | . . . . . . . Melee Attacks 3 | . . 1 . . 2 . Impact 1 | . . 1 . . . . Slashing 2 | . . . . . 2 . Piercing . | . . . . . . . Sneak Attacks . | . . . . . . . Combat Hostiles . | . . . . . . . Follow-up Attacks . | . . . . . . . Damage Inflicted . | . . . . . . . Guns . | . . . . . . . Cannons . | . . . . . . . Explosions . | . . . . . . . Melee . | . . . . . . . Ramming . | . . . . . . . Kinetic . | . . . . . . . Thermal . | . . . . . . . Explosive . | . . . . . . . Electromagnetic . | . . . . . . . Impact . | . . . . . . . Slashing . | . . . . . . . Piercing . | . . . . . . . Highest Corruption . | . . . . . . . Average Corruption . | . . . . . . . Corruption Purged . | . . . . . . . Corruption Blocked . | . . . . . . . Overload Shots . | . . . . . . . Overflow Damage . | . . . . . . . Projectiles . | . . . . . . . Explosions . | . . . . . . . Melee . | . . . . . . . Knockbacks . | . . . . . . . Impact . | . . . . . . . Kinetic . | . . . . . . . Secondary . | . . . . . . . Self-Inflicted Damage . | . . . . . . . Shots . | . . . . . . . Rammed . | . . . . . . . Targets Rammed . | . . . . . . . Kicked . | . . . . . . . Crushed . | . . . . . . . Highest Temperature 7 | . . . . . 7 . Average Temperature 5 | . . . . . 5 . Received Heat Transfer 414 | . 84 60 27 93 150 . Siege Activations . | . . . . . . . Robots Corrupted . | . . . . . . . Combat Hostiles . | . . . . . . . Parts Fried . | . . . . . . . Impact Corruptions . | . . . . . . . Robots Melted . | . . . . . . . Combat Hostiles . | . . . . . . . Parts Melted . | . . . . . . . Heat Transferred . | . . . . . . . Parts Sabotaged . | . . . . . . . Parts Stolen . | . . . . . . . Parts Stripped . | . . . . . . . Power Chain Reactions . | . . . . . . . Alert | -11 -10 -9 -8 -7 -6 -5 ------- Run | Yrd Mat Mat Mat Fac Fac Fac Peak Influence 319 | . 30 114 108 264 319 . Initial 153 | . . 8 48 49 128 153 Average 139 | . 13 54 75 153 200 . Maximum Alert Level 1 | . . . . 1 1 . Low Security (%) 76 | 100 100 100 100 79 52 . Level 1 23 | . . . . 20 47 . Level 2 . | . . . . . . . Level 3 . | . . . . . . . Level 4 . | . . . . . . . Level 5 . | . . . . . . . High Security . | . . . . . . . Max Security . | . . . . . . . Squads Dispatched 7 | . . 1 1 3 2 . Investigation 4 | . . . . 2 2 . Extermination . | . . . . . . . Reinforcement 3 | . . 1 1 1 . . Assault . | . . . . . . . Garrison . | . . . . . . . Intercept . | . . . . . . . Searches Triggered . | . . . . . . . Construction Impeded . | . . . . . . . Haulers Reinforced . | . . . . . . . Active Scanning Responses . | . . . . . . . Cargo Convoy Interrupts . | . . . . . . . Stealth | -11 -10 -9 -8 -7 -6 -5 --------- Run | Yrd Mat Mat Mat Fac Fac Fac Distress Signals 4 | . . . 2 . 2 . Communications Jammed . | . . . . . . . Distress Signals . | . . . . . . . Times Spotted 67 | . 6 14 8 16 23 . Peak Tracking Total 14 | . 6 9 7 6 14 . Tactical Retreats 12 | . . 1 . 6 5 . Traps | -11 -10 -9 -8 -7 -6 -5 ------- Run | Yrd Mat Mat Mat Fac Fac Fac Traps Triggered 3 | . . . . 1 2 . Indirectly . | . . . . . . . Trap Hack Attempts . | . . . . . . . Triggered . | . . . . . . . Disarmed . | . . . . . . . Reprogrammed . | . . . . . . . Reused . | . . . . . . . Traps Extracted . | . . . . . . . Installed . | . . . . . . . Triggered . | . . . . . . . Machines | -11 -10 -9 -8 -7 -6 -5 ---------- Run | Yrd Mat Mat Mat Fac Fac Fac Machines Disabled . | . . . . . . . Max in Single Turn . | . . . . . . . Machines Repaired . | . . . . . . . Machines Dismantled . | . . . . . . . Machines Sabotaged . | . . . . . . . Overloaded Fab Kills . | . . . . . . . Hacking | -11 -10 -9 -8 -7 -6 -5 --------- Run | Yrd Mat Mat Mat Fac Fac Fac Machines Accessed 8 | . . . . 2 6 . Terminals 8 | . . . . 2 6 . Fabricators . | . . . . . . . Repair Stations . | . . . . . . . Recycling Units . | . . . . . . . Scanalyzers . | . . . . . . . Garrison Access . | . . . . . . . Total Hacks 22 | . . . . 4 18 . Successful 4 | . . . . . 4 . Failed 18 | . . . . 4 14 . Catastrophic 6 | . . . . 2 4 . Database Lockouts . | . . . . . . . Manual 20 | . . . . 2 18 . Terminals 22 | . . . . 4 18 . Fabricators . | . . . . . . . Repair Stations . | . . . . . . . Recycling Units . | . . . . . . . Scanalyzers . | . . . . . . . Garrison Access . | . . . . . . . Terminal Hacks . | . . . . . . . Fabricator Hacks . | . . . . . . . Repair Station Hacks . | . . . . . . . Recycling Unit Hacks . | . . . . . . . Scanalyzer . | . . . . . . . Garrison Access Hacks . | . . . . . . . Unauthorized Hacks 4 | . . . . . 4 . Terminals 4 | . . . . . 4 . Botnet 4 | . . . . . 4 . Fabricators . | . . . . . . . Repair Stations . | . . . . . . . Recycling Units . | . . . . . . . Scanalyzers . | . . . . . . . Garrison Access . | . . . . . . . Data Cores Recovered . | . . . . . . . Used . | . . . . . . . Hacking Detections 8 | . . . . 2 6 . Full Trace Events 3 | . . . . 1 2 . Feedback Events . | . . . . . . . Feedback Blocked . | . . . . . . . Robot Schematics Acquired . | . . . . . . . Robots Built . | . . . . . . . Authchips . | . . . . . . . Time . | . . . . . . . Total Robot Build Rating . | . . . . . . . Part Schematics Acquired . | . . . . . . . Parts Built . | . . . . . . . Authchips . | . . . . . . . Time . | . . . . . . . Total Part Build Rating . | . . . . . . . Parts Repaired . | . . . . . . . Time . | . . . . . . . Parts Recycled . | . . . . . . . Recycled Matter . | . . . . . . . Retrieved Matter . | . . . . . . . Retrieved Components . | . . . . . . . Parts Scanalyzed . | . . . . . . . Part Schematics Acquired . | . . . . . . . Parts Damaged . | . . . . . . . Bothacking | -11 -10 -9 -8 -7 -6 -5 ------------ Run | Yrd Mat Mat Mat Fac Fac Fac Used RIF Installer . | . . . . . . . Robots Hacked . | . . . . . . . Non-combat . | . . . . . . . Combat . | . . . . . . . Robot Hacks Applied . | . . . . . . . Relay Couplers Released . | . . . . . . . Fabnet Peak Effective % . | . . . . . . . Robots Rewired . | . . . . . . . Allies Hacked . | . . . . . . . Hacks Repelled . | . . . . . . . Allies | -11 -10 -9 -8 -7 -6 -5 -------- Run | Yrd Mat Mat Mat Fac Fac Fac Total Allies . | . . . . . . . Largest Group . | . . . . . . . Highest-Rated Group . | . . . . . . . Highest-Rated Ally . | . . . . . . . Total Orders . | . . . . . . . Ally Attacks . | . . . . . . . Total Damage . | . . . . . . . Kills . | . . . . . . . Allies Corrupted . | . . . . . . . Allies Melted . | . . . . . . . Intel | -11 -10 -9 -8 -7 -6 -5 ------- Run | Yrd Mat Mat Mat Fac Fac Fac Robot Analysis Total . | . . . . . . . Derelict Logs Recovered . | . . . . . . . Drone Launches . | . . . . . . . Drone Recoveries . | . . . . . . . Exploration | -11 -10 -9 -8 -7 -6 -5 ------------- Run | Yrd Mat Mat Mat Fac Fac Fac Turns Passed 734 | 9 46 95 45 313 226 . Spaces Moved 1982 | 18 78 223 127 886 650 . Core 83 | 18 65 . . . . . Treads . | . . . . . . . Legs . | . . . . . . . Wheels . | . . . . . . . Hover . | . . . . . . . Flight 1899 | . 13 223 127 886 650 . Fastest Speed 27 | 50 37 34 34 30 27 . Average Speed 34 | 50 47 37 34 34 31 . Slowest Speed 110 | 50 50 40 34 37 110 . Overloaded Moves . | . . . . . . . Propulsion Burnouts . | . . . . . . . Robots Hopped 31 | . . 7 4 16 4 . Cave-ins Triggered . | . . . . . . . Exploration Rate (%) 23 | 4 23 28 24 32 29 . Regions Visited 6 Branch Regions . Pre-discovered Areas . | . . . . . . . Known Exits Taken 5 | . 1 1 1 1 1 . Unknown Exits Taken 1 | 1 . . . . . . Scrap Searched . | . . . . . . . Spaces Dug 2 | . . 1 . . 1 . Terrain Destroyed 2 | . . 1 . . 1 . Melee 2 | . . 1 . . 1 . Projectile . | . . . . . . . AOE . | . . . . . . . Terrain Rammed . | . . . . . . . Walls Destroyed . | . . . . . . . Machines Disabled . | . . . . . . . Actions | -11 -10 -9 -8 -7 -6 -5 --------- Run | Yrd Mat Mat Mat Fac Fac Fac Total 1990 | 17 84 226 123 879 661 . Wait 3 | . . . . 3 . . Move 1917 | 17 77 209 118 855 641 . Hop 28 | . . 6 4 14 4 . Pick Up 13 | . 3 5 . 1 4 . Fast Attach 14 | . 2 2 1 2 7 . Attach 9 | . 2 1 . 4 2 . Detach 2 | . . 1 . . 1 . Swap . | . . . . . . . Drop 2 | . . 1 . . 1 . Fire . | . . . . . . . Melee 2 | . . 1 . . 1 . Ram . | . . . . . . . Kick . | . . . . . . . Crush . | . . . . . . . Escape Stasis . | . . . . . . . Rewire . | . . . . . . . Trap . | . . . . . . . Miscellaneous . | . . . . . . . Route ------- -11/Scrapyard -10/Materials (discovered 2 exits: *Mat / *Min) -9/Materials (discovered 3 exits: *Mat / *Min x2) -8/Materials -7/Factory (discovered 2 exits: *Fac / *Low) -6/Factory (discovered 3 exits: *Fac / *Low x2) -5/Factory History --------- Turn | Location | Event 3 | -11/Scrapyard | Discovered new exit (range 15) 10 | -11/Scrapyard | Entered Materials 17 | -10/Materials | Discovered new exit (range 15) 28 | -10/Materials | Identified exit to Mines 32 | -10/Materials | Discovered new exit (range 16) 39 | -10/Materials | Identified exit to Materials 56 | -10/Materials | Entered another Materials area 56 | -9/Materials | Evolved 2 slots: Utility x2 78 | -9/Materials | Discovered new exit (range 7) 80 | -9/Materials | Identified exit to Mines 117 | -9/Materials | Discovered exit to Mines (range 9) 146 | -9/Materials | Discovered new exit (range 15) 150 | -9/Materials | Identified exit to Materials 151 | -9/Materials | Entered another Materials area 151 | -8/Materials | Evolved 2 slots: Utility x2 191 | -8/Materials | Discovered new exit (range 16) 196 | -8/Materials | Identified exit to Factory 196 | -8/Materials | Entered Factory 196 | -7/Factory | Evolved 2 slots: Propulsion x2 306 | -7/Factory | Discovered new exit (range 5) 307 | -7/Factory | Identified exit to Lower Caves 316 | -7/Factory | Build established: Mutant 502 | -7/Factory | Discovered new exit (range 16) 508 | -7/Factory | Identified exit to Factory 509 | -7/Factory | Entered another Factory area 509 | -6/Factory | Evolved 2 slots: Utility x2 588 | -6/Factory | Found Prototype Processor 588 | -6/Factory | Identified Exp. Targeting Computer 610 | -6/Factory | Discovered new exit (range 16) 614 | -6/Factory | Identified exit to Lower Caves 655 | -6/Factory | Lost 5 parts (3n2u) 702 | -6/Factory | Discovered exit to Lower Caves (range 7) 730 | -6/Factory | Discovered new exit (range 14) 730 | -6/Factory | Spotted B-75 Beast 735 | -6/Factory | Identified exit to Factory 735 | -6/Factory | Entered another Factory area 735 | -5/Factory | Evolved 2 slots: Utility x2 735 | -5/Factory | Self-destructed Last Messages --------------- Terminal linked with 3 systems. Awaiting botnet instructions. ALERT: Suspicious activity at Terminal F007. Dispatching Investigation squad. Connecting with Terminal... EXIT=FOUND Power Conduit explodes. Mic. Nuclear Core destroyed. Stasis Canceller destroyed. Xenon Bombardment Thruster destroyed. Cld. Cesium-ion Thruster destroyed. Terminal disabled. Power Conduit explodes. O-24 Administrator destroyed. Katana destroyed. K-01 Serf collects debris. EXIT=IDENTIFIED: FACTORY PARAMETERS=UTILITY+2 LOCATION=FACTORY GOAL=ESCAPE Map ----- +----------------------------------------------------+ | ????????????????????????????????????????? | | ????????????????????????????????????????? | | ????????????????????????????????????????? | | ????????????????????????????????????????? | | ????????????????????????????????????????? | | ????????????????????????????????????????? | | ????????????????????????????????????????? | | ????????????????????????????????????????? | | ????????????????????????????????????????? | | ????????????????????????????????????????? | | ????????????????????????????????????????? | | ????????????????????????????????????????? | | ????????????????????????????????????????? | | ????????????????????????????????????????? | | ????????????????????????????????????????? | | ????????????????????????????????????????? | | ????????????????????????????????????????? | | ????????????????????????????????????????? | | ????????????????????????????????????????? | | ????????????????????????????????????????? | | ????????????????????????????#???????????? | | ????????????????????????? #???????????? | | ?????????????########## #???????????? | | ?????????????# #???????????? | | ?????????????# #???????????? | | ?????????????# @ m #???????????? | | ?????????????# #???????????? | | ?????????????# #???????????? | | ?????????????################???????????? | | ????????????????????????????????????????? | | ????????????????????????????????????????? | | ????????????????????????????????????????? | | ????????????????????????????????????????? | | ????????????????????????????????????????? | | ????????????????????????????????????????? | | ????????????????????????????????????????? | | ????????????????????????????????????????? | | ????????????????????????????????????????? | | ????????????????????????????????????????? | | ????????????????????????????????????????? | | ????????????????????????????????????????? | | ????????????????????????????????????????? | | ????????????????????????????????????????? | | ????????????????????????????????????????? | | ????????????????????????????????????????? | | ????????????????????????????????????????? | | ????????????????????????????????????????? | | ????????????????????????????????????????? | | ????????????????????????????????????????? | | ????????????????????????????????????????? | +----------------------------------------------------+ Best States ------------- Heat Dissipation 37 Energy Generation 15 Energy Capacity 150 Matter Stores 201 Matter Capacity 300 Sight Range 16 Robot Scan Range 15 Terrain Scan Density 10 Evasion (%) 64 Offensive Hacking 10 Item Schematics ----------------- None Robot Schematics ------------------ None Fabricated ------------ Nothing Alien Tech Used ----------------- None Achievements -------------- None Challenges ------------ None Game ------ Seed CentriumNodeSabre Manual? 0 Play Time 00:12:48 Cumulative 248.1 hours Start 2024.08.24 @ 23:34:07 End 2024.08.24 @ 23:47:21 Sessions 1 Manual Loads 0 Difficulty Rogue Special Mode None Game No. 436 Rogue 434 Adventurer 2 Explorer 0 Win Type - Total 11 Types 8/0/1/2/0/0/0/0/0 Lore% 73 Gallery% 68 Achievement% 57 Wizard Run 0 Options --------- Layout 0 ASCII 0 Keyboard 1 Movement Numpad Keybinds 1 Fullscreen 2 Font 18/SmallcapsGlow Map View 76x50 Zoom Use 0% Tactical HUD 1 Map Filters NONE Filters NONE Steam 1 RUN: 116fcca1-58f8-4119-94e2-c49c39d7a15a